Cogmind - Beta 13 @@@ ROGUE MODE // 2024.03.31 @ 13:46:06 Player: emory Result: Destroyed by S-10 Pest with Light Assault Rifle Performance ------------- Evolutions (0) 0 Regions Visited (1) 200 Robots Destroyed (13) 65 Value Destroyed (288) 288 Prototype IDs (0) 0 Alien Tech Used (0) 0 Bonus (0) 0 TOTAL SCORE: 553 Bonus ------- None Cogmind --------- Core Integrity 0/250 Matter 258/300 Energy 99/100 System Corruption 0% Temperature Cool (0) Movement Walking (190) Ox1 Location -10/Materials Parts ------- > --- POWER (1) -------- (None) > --- PROPULSION (2) --- Aluminum Leg > --- UTILITY (2) ------ Medium Storage Unit Signal Interpreter > --- WEAPON (2) ------- Light Assault Rifle > --- INVENTORY (10) --- Heat Sink Terrain Scanner Improved Terrain Scanner Utility Shielding Light Armor Plating EM Pulse Gun Small Laser Datajack Peak State ------------ > --- POWER ------------ Light Ion Engine > --- PROPULSION ------- Aluminum Leg Aluminum Leg > --- UTILITY ---------- Improved Terrain Scanner Seismic Detector > --- WEAPON ----------- Light Assault Rifle Mining Laser > --- INVENTORY -------- Aluminum Leg Wheel Wheel EM Pulse Gun [Rating: 9] Favorites ----------- Power Light Ion Engine Engine Light Ion Engine Propulsion Aluminum Leg Leg Aluminum Leg Wheel Wheel Utility Improved Terrain Scanner Device Improved Terrain Scanner Storage Medium Storage Unit Processor Signal Interpreter Weapon Light Assault Rifle Energy Gun Small Laser Ballistic Gun Light Assault Rifle Launcher Grenade Launcher Special Weapon Mining Laser Build | -11 -10 ------- Run | Yrd Mat Slots Evolved . | . . Power . | . . Propulsion . | . . Utility . | . . Weapon . | . . Parts Attached 18 | 9 9 Power 2 | 1 1 Engine 2 | 1 1 Core . | . . Reactor . | . . Propulsion 6 | 4 2 Treads . | . . Leg 4 | 2 2 Wheel 2 | 2 . Hover . | . . Flight . | . . Utility 5 | 1 4 Device 3 | 1 2 Storage 1 | . 1 Processor 1 | . 1 Hackware . | . . Protection . | . . Artifact . | . . Weapon 5 | 3 2 Energy Gun 1 | 1 . Energy Cannon . | . . Ballistic Gun 2 | 1 1 Ballistic Cannon . | . . Launcher 1 | . 1 Special Weapon 1 | 1 . Impact Weapon . | . . Slashing Weapon . | . . Piercing Weapon . | . . Special Melee Weapon . | . . Unidentified Prototypes . | . . Parts Lost 8 | . 8 Power 2 | . 2 Propulsion 2 | . 2 Utility 1 | . 1 Weapon 3 | . 3 Highest Loss Streak 4 | . 4 To Critical Strikes . | . . Average Slot Usage (%) 85 | . 85 Engine 10 | . 10 Leg 25 | . 25 Device 14 | . 14 Storage 1 | . 1 Processor 7 | . 7 Ballistic Gun 12 | . 12 Launcher 9 | . 9 Special Weapon 1 | . 1 Naked Turns . | . . Heaviest Build 17 | 6 17 Greatest Support 20 | 20 20 Greatest Overweight (x) . | . . Average Overweight (x) . | . . Largest Inventory Capacity 10 | 5 10 Average Capacity 5 | 5 5 Most Carried 8 | 5 8 Average Carried 4 | 3 4 Final Capacity 10 | 5 10 Final Carried 8 | 5 8 Class Distribution -------------------- 52% | Scavenger-Mutant 47% | Mutant Dominant Class ---------------- Scavenger-Mutant | -10/Materials Resources | -11 -10 ----------- Run | Yrd Mat Matter Collected 437 | 309 128 Remotely . | . . Salvage Created 238 | 42 196 Parts 27 | 2 25 Haulers Intercepted . | . . Recyclers Shooed . | . . Parts Field Recycled . | . . Retrieved Matter . | . . Parts Self-Destructed . | . . Prevented . | . . Kills | -11 -10 ------- Run | Yrd Mat Combat Hostiles Destroyed 8 | 1 7 Guns 4 | 1 3 AOE 4 | . 4 Classes Destroyed 4 | 1 3 Builder 2 | . 2 Watcher 3 | . 3 Swarmer 3 | . 3 Grunt 5 | 1 4 Best Kill Streak 4 | 1 4 Combat Bots Only 2 | 1 2 Max Kills in Single Turn 2 | 1 2 Gunslinging . | . . Exploded 2 | . 2 Melee . | . . Uniques/NPCs Destroyed . | . . Combat | -11 -10 -------- Run | Yrd Mat Hostile Shots Fired 132 | 25 107 Missed 43 | 13 30 Damage Taken 866 | 133 733 Core 251 | 33 218 Absorbed by Shields . | . . Core Remaining (%) 86 | 86 . Volleys Fired 74 | 19 55 Largest 2 | 1 2 Hottest 120 | 20 120 Shots Fired 82 | 19 63 Gun 74 | 19 55 Cannon . | . . Launcher 6 | . 6 Special 2 | . 2 Kinetic 74 | 19 55 Thermal 2 | . 2 Explosive 6 | . 6 Electromagnetic . | . . Robot Hit Streak 6 | 4 6 Robot Miss Streak 4 | 2 4 Penetration Max . | . . Secondary Targets . | . . Shots Hit Robots 48 | 14 34 Core Hits 26 | 2 24 Critical Kills . | . . Critical Parts Destroyed . | . . Critical Strikes . | . . Melee Attacks . | . . Impact . | . . Slashing . | . . Piercing . | . . Sneak Attacks . | . . Combat Hostiles . | . . Follow-up Attacks . | . . Damage Inflicted 712 | 113 599 Guns 338 | 113 225 Cannons . | . . Explosions 374 | . 374 Melee . | . . Ramming . | . . Kinetic 338 | 113 225 Thermal . | . . Explosive 367 | . 367 Electromagnetic 7 | . 7 Impact . | . . Slashing . | . . Piercing . | . . Highest Corruption . | . . Average Corruption . | . . Corruption Purged . | . . Corruption Blocked . | . . Overload Shots . | . . Overflow Damage 8 | . 8 Projectiles . | . . Explosions 8 | . 8 Melee . | . . Knockbacks . | . . Impact . | . . Kinetic . | . . Secondary . | . . Self-Inflicted Damage 48 | . 48 Shots 2 | . 2 Rammed . | . . Targets Rammed . | . . Kicked . | . . Crushed . | . . Highest Temperature 60 | 6 60 Average Temperature 15 | 6 17 Received Heat Transfer 168 | 72 96 Siege Activations . | . . Robots Corrupted . | . . Combat Hostiles . | . . Parts Fried . | . . Impact Corruptions . | . . Robots Melted . | . . Combat Hostiles . | . . Parts Melted . | . . Heat Transferred . | . . Parts Sabotaged . | . . Parts Stolen . | . . Parts Stripped . | . . Power Chain Reactions . | . . Alert | -11 -10 ------- Run | Yrd Mat Peak Influence 193 | 20 193 Initial 13 | . 13 Average 66 | 8 80 Maximum Alert Level . | . . Low Security (%) 100 | 100 100 Level 1 . | . . Level 2 . | . . Level 3 . | . . Level 4 . | . . Level 5 . | . . High Security . | . . Max Security . | . . Squads Dispatched 3 | . 3 Investigation 2 | . 2 Extermination . | . . Reinforcement 1 | . 1 Assault . | . . Garrison . | . . Intercept . | . . Searches Triggered . | . . Construction Impeded . | . . Haulers Reinforced . | . . Active Scanning Responses . | . . Cargo Convoy Interrupts . | . . Stealth | -11 -10 --------- Run | Yrd Mat Distress Signals 1 | . 1 Communications Jammed . | . . Distress Signals . | . . Times Spotted 21 | 1 20 Peak Tracking Total 7 | 1 7 Tactical Retreats . | . . Traps | -11 -10 ------- Run | Yrd Mat Traps Triggered 1 | . 1 Indirectly . | . . Trap Hack Attempts . | . . Triggered . | . . Disarmed . | . . Reprogrammed . | . . Reused . | . . Traps Extracted . | . . Installed . | . . Triggered . | . . Machines | -11 -10 ---------- Run | Yrd Mat Machines Disabled 3 | . 3 Max in Single Turn 1 | . 1 Machines Repaired . | . . Machines Dismantled . | . . Machines Sabotaged . | . . Overloaded Fab Kills . | . . Hacking | -11 -10 --------- Run | Yrd Mat Machines Accessed 5 | . 5 Terminals 5 | . 5 Fabricators . | . . Repair Stations . | . . Recycling Units . | . . Scanalyzers . | . . Garrison Access . | . . Total Hacks 12 | . 12 Successful 8 | . 8 Failed 4 | . 4 Catastrophic . | . . Database Lockouts . | . . Manual . | . . Terminals 12 | . 12 Fabricators . | . . Repair Stations . | . . Recycling Units . | . . Scanalyzers . | . . Garrison Access . | . . Terminal Hacks 8 | . 8 Record 4 | . 4 Terminal Index 1 | . 1 Alert Level 1 | . 1 Locate Traps 1 | . 1 Zone Layout 1 | . 1 Fabricator Hacks . | . . Repair Station Hacks . | . . Recycling Unit Hacks . | . . Scanalyzer . | . . Garrison Access Hacks . | . . Unauthorized Hacks . | . . Terminals . | . . Fabricators . | . . Repair Stations . | . . Recycling Units . | . . Scanalyzers . | . . Garrison Access . | . . Data Cores Recovered . | . . Used . | . . Hacking Detections 4 | . 4 Full Trace Events 1 | . 1 Feedback Events . | . . Feedback Blocked . | . . Robot Schematics Acquired . | . . Robots Built . | . . Authchips . | . . Time . | . . Total Robot Build Rating . | . . Part Schematics Acquired . | . . Parts Built . | . . Authchips . | . . Time . | . . Total Part Build Rating . | . . Parts Repaired . | . . Time . | . . Parts Recycled . | . . Recycled Matter . | . . Retrieved Matter . | . . Retrieved Components . | . . Parts Scanalyzed . | . . Part Schematics Acquired . | . . Parts Damaged . | . . Bothacking | -11 -10 ------------ Run | Yrd Mat Used RIF Installer . | . . Robots Hacked . | . . Non-combat . | . . Combat . | . . Robot Hacks Applied . | . . Relay Couplers Released . | . . Fabnet Peak Effective % . | . . Robots Rewired . | . . Allies Hacked . | . . Hacks Repelled . | . . Allies | -11 -10 -------- Run | Yrd Mat Total Allies . | . . Largest Group . | . . Highest-Rated Group . | . . Highest-Rated Ally . | . . Total Orders . | . . Ally Attacks . | . . Total Damage . | . . Kills . | . . Allies Corrupted . | . . Allies Melted . | . . Intel | -11 -10 ------- Run | Yrd Mat Robot Analysis Total . | . . Derelict Logs Recovered . | . . Drone Launches . | . . Drone Recoveries . | . . Exploration | -11 -10 ------------- Run | Yrd Mat Turns Passed 1040 | 206 834 Spaces Moved 739 | 156 583 Core 28 | 28 . Treads . | . . Legs 667 | 84 583 Wheels 44 | 44 . Hover . | . . Flight . | . . Fastest Speed 50 | 50 120 Average Speed 114 | 96 120 Slowest Speed 120 | 120 120 Overloaded Moves . | . . Propulsion Burnouts . | . . Robots Hopped . | . . Cave-ins Triggered . | . . Exploration Rate (%) 37 | 8 67 Regions Visited 1 Branch Regions . Pre-discovered Areas . | . . Known Exits Taken . | . . Unknown Exits Taken 1 | 1 . Scrap Searched . | . . Spaces Dug . | . . Terrain Destroyed 45 | . 45 Melee . | . . Projectile 2 | . 2 AOE 43 | . 43 Terrain Rammed . | . . Walls Destroyed . | . . Machines Disabled . | . . Actions | -11 -10 --------- Run | Yrd Mat Total 862 | 198 664 Wait . | . . Move 738 | 155 583 Hop . | . . Pick Up 25 | 12 13 Fast Attach . | . . Attach 17 | 9 8 Detach 2 | 2 . Swap 1 | . 1 Drop 5 | 1 4 Fire 74 | 19 55 Melee . | . . Ram . | . . Kick . | . . Crush . | . . Escape Stasis . | . . Rewire . | . . Trap . | . . Miscellaneous . | . . Route ------- -11/Scrapyard -10/Materials (discovered 2 exits: [*Mat] / [*Min]) History --------- Turn | Location | Event 2 | -11/Scrapyard | Met Revision 17 54 | -11/Scrapyard | Discovered new exit (range 8) 207 | -11/Scrapyard | Entered Materials 316 | -10/Materials | Build established: Mutant 341 | -10/Materials | Lost 4 parts (1p1n1u1w) 798 | -10/Materials | Build established: Scavenger-Mutant 812 | -10/Materials | Discovered new exit (range 13) 824 | -10/Materials | Core integrity fell below 50% 850 | -10/Materials | Discovered new exit (range 16) 1036 | -10/Materials | Core integrity fell below 20% 1041 | -10/Materials | Destroyed by S-10 Pest with Light Assault Rifle Last Messages --------------- Acquired Sml. Laser. K-01 Serf cleans the Machine. T-07 Excavator is excavating. Acquired Lgt. Armor Plating. Acquired Terrain Scanner. U-05 Engineer lays Concrete. Triggered Alarm Trap. An alarm sounds. ALERT: Alarm triggered, dispatching investigation squad. U-05 Engineer builds a Wall. Grenade Launcher destroyed. T-07 Excavator is excavating. G-34 Mercenary destroyed. U-05 Engineer lays Concrete. S-10 Pest destroyed. Aluminum Leg destroyed. Lgt. Ion Engine destroyed. Critical hit (Burn: +37). [Achievement: First Step to Greatness] Map ----- +----------------------------------------------------+ | ????????????????????????????????????????????? | | ????????????????????????????????????????????? | | ????????????????????????????????????????????? | | ????????????????????????????????????????????? | | #???????????????????????????????????????????? | | #???????????????????????????????????????????? | | #???????????????????????###???# ????????????? | | #?########?????????????? ?? #?????????? | | #?# #?????????????? ?? +?????????? | | #?# #?????????????? "" #?????????? | | #?#""" #??????????????# "Y #?????????? | | #?#""" #??????????????# "" * #?????????? | | #?#""" #??????????????# %= #?????????? | | #?# #?########?????# !!!#?????????? | | ######+##### #?????# !! #?????????? | | + """###???# !! #?????????? | | ########### """## ##?# #?????????? | | #?#######?# """## ## #?????????? | | #?#""""""?# #? # #?????????? | | #?#" |"| "# #?? # #?????????? | | ###" "##+######### # !#### ?????? | | !!! #????? | | < !! !#?? | | !! ??? | | #### ##+#########/##########+###+# ??? | | ##?######### #?# =g@ #????????????????? | | #?# # #?# gss #????????????????? | | #?# """# #?# "" #????????????????? | | #?# """# """ #?#g"T !!#????????????????? | | #?# """# """ #?# "" !!#????????????????? | | #?# # """ #?# #????????????????? | | #######+##############+####????????????????? | | + ?????#??? ??????????? | | ####### ########??##???????????????????????? | | ##?????# #?????#?????????#????????#?????????? | | #??#?### #?????????#????????????????????????? | | #????#?# ##?##?#??????? ?????#??????#???????? | | ##?????# #????#??#?#??#??#??#???????????????? | | #???#??# #???#???#???????????????#??????????? | | #??????# #?#########????#???#?#?#??#????????? | | ##????## #?# #??????????###????????#???? | | #??????# #?# #???"???????#??????#??????? | | #??#?#?# #?# =#?????? ?#??????????#????? | | ###????# ### #?????? #???????????????? | | #?????## # ##??################?#????? | | #?#???## # ##### ! #?????#? | | ######## ########/#####* #??????? | | ^^^ * = * [ #???#??? | | ###############+########+####??????? | | """" # #???# # #???????? | +----------------------------------------------------+ Best States ------------- Heat Dissipation 25 Energy Generation 10 Energy Capacity 125 Matter Stores 300 Matter Capacity 300 Sight Range 16 Robot Scan Range 14 Terrain Scan Range 16 Terrain Scan Density 10 Evasion (%) 55 Item Schematics ----------------- None Robot Schematics ------------------ None Fabricated ------------ Nothing Alien Tech Used ----------------- None Achievements -------------- First Step to Greatness One Hack Too Far Uninvited Guest Challenges ------------ None Game ------ Seed CargoLongswordCannon Manual? 0 Play Time 00:44:08 Cumulative 0.7 hours Start 2024.03.31 @ 00:56:29 End 2024.03.31 @ 13:46:06 Sessions 6 Manual Loads 0 Difficulty Rogue Special Mode None Game No. 1 Rogue 1 Adventurer 0 Explorer 0 Win Type - Total 0 Types 0/0/0/0/0/0/0/0/0 Lore% 0 Gallery% 1 Achievement% 1 Wizard Run 0 Options --------- Layout 1 ASCII 1 Keyboard 0 Movement Mouse Keybinds 0 Fullscreen 1 Font 16/SmallcapsGlow Map View 50x35 Zoom Use 0% Tactical HUD 0 Map Filters NONE Filters NONE Steam SD RUN: 804bd8b6-90d8-46cd-b570-ef2fde7e90dc